bitfinex/quotes_ETHUSD_20250326
["timestamp","ask_amount","ask_price","bid_price","bid_amount"]
[1743017576417,14.26543966,1999.2,1998.9,16.505298]
[1743017576612,9.26326966,1999.2,1998.9,16.505298]
[1743017577258,5.00225,1999.1,1998.9,16.505298]
[1743017577423,5.00225,1999.1,1998.9,17.319398]
[1743017577623,5.00201,1999.2,1998.9,22.322088]
[1743017577815,10.00421,1999.2,1998.9,17.319398]
[1743017578014,5.00201,1999.2,1998.9,22.322088]
[1743017578209,11.06176,1999.3,1999.1,0.55]
[1743017578210,6.05999,1999.3,1999.1,0.55]
[1743017578813,6.05999,1999.3,1999.2,14.5]
[1743017579015,5.00175,1999.3,1999.2,14.5]
[1743017579211,4.26125966,1999.4,1998.9,0.8141]
[1743017579444,5.00209,1999.2,1998.9,0.8141]
[1743017579642,5.00209,1999.2,1998.9,1.951098]
[1743017579948,5.00209,1999.2,1999.0,14.5]
[1743017580154,5.00178,1999.3,1999.0,14.5]
[1743017580317,10.00371,1999.3,1999.0,14.5]
[1743017580517,5.00178,1999.3,1999.0,14.5]
[1743017580850,5.00213,1999.2,1999.0,14.5]
[1743017581418,5.002,1999.2,1999.0,14.98970548]
[1743017581639,5.00178,1999.3,1999.0,14.98970548]
[1743017581814,5.00178,1999.3,1999.1,0.55]
[1743017582438,5.00153,1999.4,1999.2,14.5]
[1743017582634,16.06269,1999.5,1999.2,14.5]
[1743017582819,16.06269,1999.5,1999.2,17.255904]
[1743017583138,5.00151,1999.4,1999.2,17.255904]
[1743017583360,11.06126,1999.5,1999.2,22.257884]
[1743017583873,6.05999,1999.5,1999.3,5.55173]
[1743017584081,5.00101,1999.6,1999.3,0.55]
[1743017584372,0.1164537,1999.7,1999.4,5.00142]
[1743017584592,0.1164537,1999.7,1999.5,1.304342]
[1743017584740,0.1164537,1999.7,1999.5,6.305512]
[1743017584945,0.1164537,1999.7,1999.6,0.55]
[1743017585786,0.1164537,1999.7,1999.6,5.601007]
[1743017585982,0.1164537,1999.7,1999.6,13.61645966]
[1743017586143,0.1164537,1999.7,1999.6,15.52824283]
[1743017586479,0.1164537,1999.7,1999.6,11.26698317]
[1743017586678,0.1164537,1999.7,1999.6,2.46178317]
[1743017586878,0.1164537,1999.7,1999.6,0.55]
[1743017587298,5.00109,1999.6,1999.5,0.55]
[1743017587596,5.00109,1999.6,1999.5,15.05]
[1743017588085,5.1172037,1999.7,1999.5,15.05]
[1743017588383,5.001,1999.6,1999.5,15.05]
[1743017588585,9.26225966,1999.6,1999.3,0.55]
[1743017588802,5.00192,1999.3,1999.0,0.8143]
[1743017589087,5.00212,1999.2,1999.0,14.5]
[1743017589460,5.00225,1999.1,1999.0,14.5]
[1743017589660,9.26350966,1999.1,1999.0,14.5]
[1743017589858,5.00204,1999.2,1999.0,14.5]
[1743017590286,14.26498966,1999.3,1999.0,14.5]
[1743017590558,5.00201,1999.2,1999.0,14.5]
[1743017591057,9.26302966,1999.3,1999.0,14.5]
[1743017591258,5.00177,1999.3,1999.0,20.95248]
[1743017591456,6.05999,1999.4,1999.2,5.002]
[1743017591672,6.05999,1999.4,1999.2,0.7756]
[1743017591872,6.05999,1999.4,1999.2,1.408377]
[1743017592158,6.05999,1999.4,1999.2,6.410247]
[1743017592358,5.0013,1999.5,1999.3,0.55]
[1743017592871,5.00175,1999.3,1999.0,16.7256]
[1743017593076,5.00175,1999.3,1999.1,0.55]
[1743017593293,9.26251966,1999.5,1999.1,2.27756]
[1743017593590,5.00168,1999.4,1999.1,2.27756]
[1743017593799,10.00335,1999.4,1999.1,2.27756]
[1743017594011,5.00175,1999.3,1999.1,0.55]
[1743017594995,10.0037,1999.3,1999.1,0.55]
[1743017595194,5.002,1999.2,1999.1,0.55]
[1743017595889,5.002,1999.2,1999.0,16.7256]
[1743017596091,5.00225,1999.1,1999.0,16.5]
[1743017596264,5.00225,1999.1,1999.0,14.5]
[1743017598783,5.00207,1999.2,1999.0,14.5]
[1743017599193,11.0615,1999.4,1999.1,0.55]
[1743017599767,11.0615,1999.4,1999.1,1.3363]
[1743017599969,6.05999,1999.4,1999.2,19.50187]
[1743017600271,11.06149,1999.4,1999.3,1.950187]
[1743017600467,11.06149,1999.4,1999.2,14.5]
[1743017601714,6.05999,1999.4,1999.2,14.5]
[1743017602143,6.05999,1999.4,1999.2,19.5018]
[1743017602640,6.05999,1999.4,1999.3,1.3268]
[1743017602999,5.00112,1999.6,1999.3,1.3268]
[1743017603204,5.1172237,1999.7,1999.3,6.37843361]
[1743017603537,5.1172237,1999.7,1999.4,0.63784336]
[1743017603698,5.1172237,1999.7,1999.3,0.55]
[1743017603699,5.00107,1999.6,1999.3,0.55]
[1743017604045,5.00107,1999.6,1999.4,14.5]
[1743017604344,9.26250966,1999.5,1999.4,14.5]
[1743017604501,9.26250966,1999.5,1999.2,0.55]
[1743017604696,14.26392966,1999.5,1999.2,0.55]
[1743017604923,9.26268966,1999.5,1999.2,0.55]
[1743017605327,5.00159,1999.4,1999.1,0.55]
[1743017605497,5.00159,1999.4,1999.2,14.5]
[1743017605699,4.26125966,1999.3,1999.2,14.5]
[1743017605936,5.00233,1999.1,1998.8,5.0029]
[1743017606225,4.26125966,1999.2,1998.9,5.00273]
[1743017606422,10.00366,1999.3,1999.0,14.5]
[1743017606611,20.32443966,1999.4,1999.1,0.55]
[1743017606810,15.32276966,1999.4,1999.1,0.55]
[1743017607314,15.32276966,1999.4,1999.2,14.5]
[1743017607500,14.26448966,1999.4,1999.2,14.5]
[1743017607707,9.26277966,1999.4,1999.2,14.5]
[1743017608029,5.00175,1999.3,1999.2,14.5]
[1743017609830,5.00225,1999.1,1998.9,1.000563]
[1743017610033,4.26125966,1999.0,1998.8,0.8045]
[1743017610236,5.00275,1998.9,1998.6,0.8045]
[1743017610530,5.00275,1998.9,1998.7,0.55]
[1743017610850,5.00275,1998.9,1998.8,14.5]
[1743017611452,9.26400966,1998.9,1998.8,14.5]
[1743017611741,5.00387,1998.5,1998.2,0.8045]
[1743017612031,5.00387,1998.5,1998.3,14.5]
[1743017612219,4.26125966,1998.5,1998.3,14.5]
[1743017612534,5.00387,1998.5,1998.3,14.5]
[1743017613115,10.00783,1998.5,1998.3,14.5]
[1743017613734,5.00355,1998.6,1998.3,14.5]
[1743017613902,5.00355,1998.6,1998.3,16.03045]
[1743017614224,10.00784,1998.5,1998.3,16.03045]
[1743017614798,5.004,1998.4,1998.3,14.5]
[1743017617228,5.00381,1998.5,1998.3,14.5]
[1743017617435,5.00381,1998.5,1998.3,15.48881924]
[1743017618940,5.004,1998.4,1998.3,15.48881924]
[1743017620243,5.004,1998.4,1998.3,16.03881924]
[1743017620616,9.26525966,1998.4,1998.3,15.48881924]
[1743017621347,5.004,1998.4,1998.3,15.48881924]
[1743017622022,5.004,1998.4,1998.3,14.5]
[1743017625938,9.26506966,1998.5,1998.3,14.5]
[1743017625939,5.00381,1998.5,1998.3,14.5]
[1743017626132,10.00773,1998.5,1998.3,14.5]
[1743017626328,9.26525966,1998.4,1998.3,14.5]
[1743017627859,5.00443,1998.3,1998.1,0.55]
[1743017628034,9.26575966,1998.2,1998.1,1.54550233]
[1743017628439,4.26125966,1998.2,1998.1,16.04550233]
[1743017628757,5.00402,1998.4,1998.1,21.05021233]
[1743017629062,5.00402,1998.4,1998.1,23.73638156]
[1743017629558,10.00818,1998.4,1998.1,18.73167156]
[1743017629753,6.05999,1998.6,1998.1,15.05]
[1743017629754,9.26554966,1998.3,1998.1,15.05]
[1743017630758,5.0045,1998.2,1998.1,15.05]
[1743017630956,9.26554966,1998.3,1998.1,15.05]
[1743017631156,5.00429,1998.3,1998.1,15.05]
[1743017631357,5.0045,1998.2,1998.1,14.5]
[1743017632828,9.26575966,1998.2,1998.1,14.5]
[1743017633264,5.0045,1998.2,1998.1,14.5]
[1743017633862,9.26575966,1998.2,1998.1,14.5]
[1743017636170,5.00429,1998.3,1998.0,0.55]
[1743017636466,20.32942966,1998.4,1998.0,5.55494]
[1743017636664,5.0043,1998.3,1998.1,14.5]
[1743017636848,11.06399,1998.4,1998.2,1.3787]
[1743017637039,11.06304,1998.8,1998.3,5.55425]
[1743017637241,11.06304,1998.8,1998.5,0.55]
[1743017637567,15.32429966,1998.8,1998.6,14.5]
[1743017637931,15.32429966,1998.8,1998.5,1.3738]
[1743017638366,11.06304,1998.8,1998.6,14.5]
[1743017639261,20.32747966,1998.8,1998.6,14.5]
[1743017639556,5.00325,1998.7,1998.6,15.05]
[1743017640167,15.32429966,1998.8,1998.6,15.05]
[1743017640361,6.05999,1998.8,1998.6,15.05]
[1743017640674,6.05999,1998.8,1998.6,17.137752]
[1743017641036,15.32432966,1998.8,1998.6,17.137752]
[1743017641241,5.00325,1998.7,1998.6,15.05]
[1743017641473,5.00361,1998.6,1998.4,0.55]
[1743017641661,9.26459966,1998.7,1998.4,0.55]
[1743017641861,14.26807966,1998.7,1998.4,0.55]
[1743017642062,5.00353,1998.6,1998.4,0.55]
[1743017642369,14.26848966,1998.6,1998.3,15.2763]
[1743017642570,14.26848966,1998.6,1998.3,17.304357]
[1743017642875,9.26478966,1998.6,1998.3,23.31510524]
[1743017643395,5.00328,1998.7,1998.3,23.31502524]
[1743017643546,5.00303,1998.8,1998.6,0.55]
[1743017643750,5.00285,1998.9,1998.6,1.3547]
[1743017643944,11.06253,1999.0,1998.6,1.3547]
[1743017644171,11.06253,1999.0,1998.6,1.990544]
[1743017644377,5.00278,1998.9,1998.6,1.990544]
[1743017644677,5.00278,1998.9,1998.6,1.3547]
[1743017645468,10.00569,1998.9,1998.6,1.3547]
[1743017645981,10.00569,1998.9,1998.7,14.5]
[1743017646343,5.003,1998.8,1998.7,14.5]
[1743017646665,10.00569,1998.9,1998.7,14.5]
[1743017647055,5.00278,1998.9,1998.7,14.5]
[1743017647262,10.00576,1998.9,1998.6,1.3547]
[1743017647581,14.26701966,1998.9,1998.6,1.3547]
[1743017647880,14.26701966,1998.9,1998.6,15.8547]
[1743017648076,5.00278,1998.9,1998.6,15.8547]
[1743017648396,5.00278,1998.9,1998.6,20.85818]
[1743017648587,5.00278,1998.9,1998.6,15.8547]
[1743017649277,10.00573,1998.9,1998.6,15.8547]
[1743017649479,5.00304,1998.8,1998.6,15.8547]
[1743017649683,5.00304,1998.8,1998.6,15.05]
[1743017650383,5.00276,1998.9,1998.6,15.05]
[1743017650681,5.00229,1999.1,1998.8,5.55291]
[1743017650896,5.00229,1999.1,1998.8,0.55]
[1743017651553,10.00471,1999.1,1998.8,0.55]
[1743017651753,5.00251,1999.0,1998.8,0.55]
[1743017651953,5.00229,1999.1,1998.8,0.55]
[1743017652372,5.00229,1999.1,1998.8,3.13536]
[1743017652985,5.00229,1999.1,1998.9,14.5]
[1743017653882,5.00229,1999.1,1998.9,14.5]
[1743017655090,10.00474,1999.1,1998.9,14.5]
[1743017655582,5.00229,1999.1,1998.9,14.5]
[1743017655784,10.00474,1999.1,1998.9,14.5]
[1743017655984,5.00229,1999.1,1998.9,14.5]
[1743017656370,10.00474,1999.1,1998.9,14.5]
[1743017656565,9.26375966,1999.0,1998.9,14.5]
[1743017656773,9.26375966,1999.0,1998.4,5.0039]
[1743017656774,5.00336,1998.7,1998.4,5.0039]
[1743017656998,5.00336,1998.7,1998.4,0.55]
[1743017657294,5.00336,1998.7,1998.5,14.5]
[1743017657295,10.00678,1998.7,1998.5,14.5]
[1743017657591,5.00233,1999.1,1998.6,1.3284]
[1743017657800,6.05999,1999.3,1998.9,5.78099]
[1743017657970,16.06372,1999.3,1998.9,6.78521497]
[1743017658290,5.00204,1999.2,1998.9,6.78521497]
[1743017659594,10.00426,1999.2,1998.9,0.7784]
[1743017659755,5.00204,1999.2,1998.9,0.7784]
[1743017660090,11.06176,1999.3,1999.0,0.55]
[1743017660277,11.06134,1999.5,1999.2,0.55]
[1743017660594,6.05999,1999.5,1999.2,6.3178]
[1743017660891,6.05999,1999.5,1999.4,0.55]
[1743017661205,5.1173137,1999.7,1999.4,0.55]
[1743017661206,0.1164537,1999.7,1999.6,0.55]
[1743017661571,5.1172037,1999.7,1999.6,0.55]
[1743017661896,0.1164537,1999.7,1999.6,0.55]
[1743017662475,0.1164537,1999.7,1999.6,1.28572773]
[1743017664481,0.1164537,1999.7,1999.6,15.78572773]
[1743017665398,0.1164537,1999.7,1999.6,20.78672773]
[1743017666012,0.1164537,1999.7,1999.6,25.04798739]
[1743017666376,0.1164537,1999.7,1999.6,25.82148739]
[1743017667689,0.1164537,1999.7,1999.6,21.56022773]
[1743017670411,0.1164537,1999.7,1999.6,24.56022773]
[1743017670596,0.1164537,1999.7,1999.6,29.55022773]
[1743017671117,0.1164537,1999.7,1999.6,33.81148739]
[1743017672006,11.04999,2000.6,2000.3,0.55]
[1743017672007,11.0587,2000.6,2000.3,0.55]
[1743017672314,4.99871,2000.6,2000.3,1.183564]
[1743017672809,6.05999,2000.7,2000.3,1.183564]
[1743017672810,11.05829,2000.7,2000.3,6.182764]
[1743017673007,11.05829,2000.7,2000.5,0.55]
[1743017673209,16.05673,2000.7,2000.5,0.55]
[1743017673591,16.05673,2000.7,2000.4,0.55]
[1743017673791,4.99853,2000.6,2000.4,0.55]
[1743017674002,4.9985,2000.6,2000.5,15.05]
[1743017674706,6.05999,2000.7,2000.5,15.05]
[1743017674911,11.05834,2000.7,2000.5,15.05]
[1743017675413,6.05999,2000.7,2000.5,16.89237896]
[1743017675618,11.05831,2000.7,2000.5,16.89237896]
[1743017675782,6.05999,2000.7,2000.6,0.55]
[1743017676186,11.05824,2000.7,2000.6,0.55]
[1743017676484,4.99825,2000.7,2000.5,0.55]
[1743017676705,9.99673,2000.7,2000.5,0.55]
[1743017678303,4.9985,2000.6,2000.5,0.55]
[1743017678915,4.99825,2000.7,2000.5,0.55]
[1743017680426,4.99801,2000.8,2000.5,1.7063676]
[1743017680933,4.99801,2000.8,2000.4,0.55]
[1743017680934,4.99836,2000.7,2000.4,0.55]
[1743017681836,4.99801,2000.8,2000.4,5.54885]
[1743017682122,9.99618,2000.8,2000.4,5.54885]
[1743017682523,4.99801,2000.8,2000.4,10.54769]
[1743017682730,4.99801,2000.8,2000.4,5.54884]
[1743017682945,4.99801,2000.8,2000.6,0.55]
[1743017683309,5.18426,2000.9,2000.6,0.55]
[1743017683645,0.1864,2000.9,2000.6,0.55]
[1743017683845,4.9981,2000.8,2000.6,0.55]
[1743017685132,4.99825,2000.7,2000.6,0.55]
[1743017686334,4.9981,2000.8,2000.6,0.55]
[1743017686500,0.07,2000.9,2000.6,1.83980866]
[1743017686701,5.06788,2000.9,2000.6,1.7898267]
[1743017687136,5.06788,2000.9,2000.6,6.7882267]
[1743017687644,5.06788,2000.9,2000.6,1.7898267]
[1743017687939,5.06788,2000.9,2000.6,6.7883067]
[1743017688237,10.06579,2000.9,2000.6,1.7898267]
[1743017688453,5.06788,2000.9,2000.6,1.7898267]
[1743017688935,5.06788,2000.9,2000.6,6.7883267]
[1743017689644,5.06788,2000.9,2000.6,1.7898267]
[1743017689823,10.06585,2000.9,2000.6,1.7898267]
[1743017690025,4.99813,2000.8,2000.6,1.7898267]
[1743017691531,5.06778,2000.9,2000.6,1.7898267]
[1743017691735,10.06577,2000.9,2000.6,1.7898267]
[1743017691932,5.06778,2000.9,2000.6,1.7898267]
[1743017692135,4.99812,2000.8,2000.5,0.7957]
[1743017692304,5.06785,2000.9,2000.5,5.79429]
[1743017692508,5.06785,2000.9,2000.6,0.55]
[1743017692714,10.06575,2000.9,2000.6,0.55]
[1743017693037,4.99811,2000.8,2000.6,0.55]
[1743017693837,5.06785,2000.9,2000.6,6.682736]
[1743017694014,5.06785,2000.9,2000.6,1.684326]
[1743017694214,4.99801,2000.8,2000.6,0.55]
[1743017695225,9.99616,2000.8,2000.6,0.55]
[1743017695433,4.99801,2000.8,2000.6,0.55]
[1743017695739,10.0657,2000.9,2000.6,0.55]
[1743017696535,5.06778,2000.9,2000.6,5.54849]
[1743017696741,10.06569,2000.9,2000.6,0.55]
[1743017697034,5.06778,2000.9,2000.6,0.55]
[1743017697216,5.06778,2000.9,2000.6,6.60904497]
[1743017697637,5.06778,2000.9,2000.6,6.60893497]
[1743017697836,4.998,2000.8,2000.6,0.55]
[1743017698035,4.99825,2000.7,2000.6,0.55]
[1743017698243,4.998,2000.8,2000.6,0.55]
[1743017700440,5.06777,2000.9,2000.6,0.55]
[1743017700606,10.0657,2000.9,2000.6,0.55]
[1743017700815,4.99804,2000.8,2000.6,0.55]
[1743017702544,4.99804,2000.8,2000.4,8.54899]
[1743017702748,4.99804,2000.8,2000.4,10.285933]
[1743017703046,4.99804,2000.8,2000.6,0.55]
[1743017704533,9.9962,2000.8,2000.6,0.55]
[1743017704728,4.99804,2000.8,2000.6,0.55]
[1743017704928,4.99898,2000.5,2000.3,0.8229]
[1743017705136,4.99898,2000.5,2000.4,0.55]
[1743017705313,4.9985,2000.6,2000.4,0.55]
[1743017705946,9.99716,2000.6,2000.4,0.55]
[1743017706449,4.99875,2000.5,2000.4,0.55]
[1743017706617,9.99716,2000.6,2000.4,0.55]
[1743017706943,4.999,2000.4,2000.1,0.816]
[1743017707115,4.99876,2000.5,2000.2,0.55]
[1743017707718,9.99766,2000.5,2000.2,0.55]
[1743017708237,4.99876,2000.5,2000.2,0.55]
[1743017708946,4.99901,2000.4,2000.2,0.55]
[1743017709749,4.99875,2000.5,2000.2,0.55]
[1743017710116,4.99902,2000.4,2000.2,0.55]
[1743017710316,4.99875,2000.5,2000.2,0.55]
[1743017710517,9.99768,2000.5,2000.2,0.55]
[1743017711328,4.99875,2000.5,2000.2,0.55]
[1743017711529,4.999,2000.4,2000.2,0.55]
[1743017712219,4.99877,2000.5,2000.2,0.55]
[1743017712660,9.99767,2000.5,2000.2,0.55]
[1743017712953,4.99877,2000.5,2000.2,0.55]
[1743017713249,9.99772,2000.5,2000.2,0.55]
[1743017713453,4.99829,2000.7,2000.2,1.686555]
[1743017713646,6.05999,2000.8,2000.5,4.99861]
[1743017713850,6.05999,2000.8,2000.7,5.54825]
[1743017714023,6.05999,2000.8,2000.7,0.55]
[1743017714224,10.32124966,2000.8,2000.7,0.55]
[1743017714548,15.31924966,2000.8,2000.7,0.55]
[1743017716665,5.11479,2000.7,2000.4,0.55]
[1743017716961,10.11325,2000.7,2000.4,0.55]
[1743017717538,4.99839,2000.7,2000.4,0.55]
[1743017717742,9.99681,2000.7,2000.4,0.55]
[1743017718938,9.99678,2000.7,2000.4,0.55]
[1743017719869,4.99856,2000.6,2000.4,0.55]
[1743017721169,9.99683,2000.7,2000.4,0.55]
[1743017721768,4.99854,2000.6,2000.4,0.55]
[1743017721945,4.99854,2000.6,2000.3,0.55]
[1743017722145,4.99854,2000.6,2000.3,5.54924]
[1743017723735,4.99827,2000.7,2000.3,10.5483]
[1743017724065,9.99667,2000.7,2000.5,0.55]
[1743017724363,4.99827,2000.7,2000.5,0.55]
[1743017724956,4.9985,2000.6,2000.3,0.55]
[1743017725357,4.99827,2000.7,2000.3,5.54913]
[1743017725656,15.43566966,2000.8,2000.5,0.55]
[1743017725858,4.99825,2000.7,2000.5,0.55]
[1743017726640,20.43382966,2000.8,2000.6,14.5]
[1743017726845,6.05999,2000.8,2000.7,1.3424]
[1743017728069,6.05999,2000.8,2000.7,0.55]
[1743017729157,9.32905966,2000.9,2000.7,0.55]
[1743017730342,4.33125966,2000.9,2000.7,0.55]
[1743017730539,9.32908966,2000.9,2000.7,15.05]
[1743017732073,4.33125966,2000.9,2000.7,15.05]
[1743017732374,0.07,2000.9,2000.8,5.548]
[1743017733345,0.07,2000.9,2000.8,0.55]
[1743017733747,4.998,2000.8,2000.5,0.7924]
[1743017734075,4.998,2000.8,2000.0,3.0]
[1743017734076,9.25977966,2000.6,2000.2,4.9994]
[1743017734271,9.25977966,2000.6,2000.3,0.55]
[1743017734577,14.25844966,2000.6,2000.3,15.05]
[1743017734747,4.26125966,2000.4,2000.3,14.5]
[1743017734947,5.11521,2000.5,2000.3,14.5]
[1743017735253,9.25975966,2000.6,2000.3,14.5]
[1743017735556,14.25844966,2000.6,2000.3,14.5]
[1743017735874,4.99876,2000.5,2000.3,14.5]
[1743017736088,9.26025966,2000.4,2000.3,14.5]
[1743017736378,4.99959,2000.2,1999.9,0.8279]
[1743017736675,9.26084966,2000.2,1999.9,15.3279]
[1743017737177,4.99984,2000.1,1999.9,15.3279]
[1743017737854,4.99984,2000.1,1999.9,14.5]
[1743017738352,5.0,2000.0,1999.9,14.5]
[1743017738675,9.26125966,2000.0,1999.9,14.5]
[1743017739555,5.00033,1999.9,1999.7,0.55]
[1743017739757,9.26158966,1999.9,1999.7,0.55]
[1743017739954,9.26158966,1999.9,1999.8,14.5]
[1743017740882,8.38823054,1999.9,1999.8,14.5]
[1743017741378,13.38868054,1999.9,1999.6,0.55]
[1743017741683,3.38790054,1999.7,1999.6,0.55]
[1743017742082,3.38790054,1999.7,1999.4,5.00148]
[1743017742379,3.38790054,1999.7,1999.5,15.05]
[1743017743075,8.38879054,1999.7,1999.5,15.05]
[1743017743763,3.38790054,1999.7,1999.5,15.05]
[1743017744570,8.38869054,1999.7,1999.5,15.05]
[1743017746182,3.38790054,1999.7,1999.5,15.05]
[1743017746382,13.38865081,1999.9,1999.5,20.9170365]
[1743017746557,8.38820081,1999.9,1999.5,20.9170365]
[1743017746745,3.38794081,2000.1,1999.9,0.55]
[1743017747257,8.38770081,2000.1,1999.9,0.55]
[1743017747460,14.56355081,2000.4,2000.0,4.99998]
[1743017747776,19.56277081,2000.4,2000.0,5.82418]
[1743017747964,4.99927,2000.3,2000.0,0.8242]
[1743017748547,14.56355081,2000.4,2000.0,0.8242]
[1743017748747,6.05999,2000.4,2000.1,5.54966]
[1743017748947,4.99872,2000.6,2000.5,0.55]
[1743017748948,6.05999,2000.6,2000.5,0.55]
[1743017749283,6.05999,2000.8,2000.7,0.55]
[1743017749659,0.07,2000.9,2000.7,0.55]
[1743017749865,0.07,2000.9,2000.8,0.55]
[1743017750202,0.07,2000.9,2000.7,0.55]
[1743017750379,8.38608081,2000.8,2000.5,0.55]
[1743017750567,3.38794081,2000.6,2000.5,0.55]
[1743017750769,4.9984,2000.7,2000.5,0.55]
[1743017751274,8.38601081,2000.8,2000.6,14.5]
[1743017751454,0.07,2000.9,2000.7,0.55]
[1743017752262,8.38594081,2000.8,2000.6,14.5]
[1743017753060,5.06777,2000.9,2000.7,0.55]
[1743017753284,0.07,2000.9,2000.7,6.35921]
[1743017754569,0.07,2000.9,2000.7,11.35736]
[1743017754769,0.07,2000.9,2000.7,6.35921]
[1743017755289,0.07,2000.9,2000.7,1.3612]
[1743017756085,0.07,2000.9,2000.8,0.55]
[1743017757294,5.06775,2000.9,2000.8,0.55]
[1743017757492,0.07,2000.9,2000.8,0.55]
[1743017759107,6.05999,2001.6,2001.0,0.55]
[1743017759286,4.99638,2001.5,2001.3,0.55]
[1743017759464,8.38432081,2001.5,2001.1,0.55]
[1743017759665,13.38079081,2001.5,2001.1,0.55]
[1743017759875,4.99653,2001.4,2001.1,0.55]
[1743017761015,9.99322,2001.4,2001.1,0.55]
[1743017761196,4.99679,2001.3,2001.1,0.55]
[1743017761396,4.99653,2001.4,2001.1,0.55]
[1743017762611,8.38447081,2001.4,2001.1,0.55]
[1743017762999,4.99653,2001.4,2001.1,0.55]
[1743017763178,8.38447081,2001.4,2001.1,0.55]
[1743017764105,4.99626,2001.5,2001.2,4.99688]
[1743017764275,8.38420081,2001.5,2001.2,4.99688]
[1743017764479,8.38420081,2001.5,2001.1,5.54717]
[1743017764875,3.38794081,2001.4,2001.1,5.54717]
[1743017765414,8.38420081,2001.5,2001.1,5.54712]
[1743017765584,8.38420081,2001.5,2001.1,6.97669]
[1743017766112,13.38064081,2001.5,2001.1,6.97669]
[1743017766311,8.38420081,2001.5,2001.1,6.97669]
[1743017766500,8.38420081,2001.5,2001.1,11.97377]
[1743017766702,3.38794081,2001.5,2001.2,6.269417]
[1743017766882,3.38794081,2001.5,2001.2,4.99696]
[1743017767277,3.38794081,2001.5,2001.3,0.55]
[1743017767812,8.38424081,2001.5,2001.2,0.55]
[1743017768111,4.99652,2001.4,2001.2,15.05]
[1743017768526,13.38113081,2001.4,2001.2,15.05]
[1743017768679,8.38446081,2001.4,2001.2,15.05]
[1743017768882,9.99373,2001.3,2001.1,0.55]
[1743017769107,4.99675,2001.3,2001.1,0.55]
[1743017769511,8.38494081,2001.2,2001.1,14.5]
[1743017769807,4.99746,2001.1,2000.9,0.55]
[1743017770009,4.9975,2001.0,2000.8,0.7909]
[1743017770222,13.38318081,2001.0,2000.9,14.5]
[1743017770420,4.99732,2001.1,2000.9,14.5]
[1743017770707,4.9975,2001.0,2000.9,14.5]
[1743017772915,11.05682,2001.3,2001.0,0.55]
[1743017773313,16.05376,2001.3,2001.0,0.55]
[1743017773714,11.05682,2001.3,2001.0,0.55]
[1743017773912,4.997,2001.2,2001.1,15.05]
[1743017774128,10.44551689,2001.2,2001.1,14.5]
[1743017774326,10.44551689,2001.2,2000.7,0.807]
[1743017774327,4.9976,2001.0,2000.8,0.55]
[1743017774506,4.99775,2000.9,2000.5,4.99871]
[1743017774701,4.99808,2000.8,2000.6,14.5]
[1743017774917,5.11448,2000.8,2000.6,16.528361]
[1743017775211,4.99775,2000.9,2000.6,16.528361]
[1743017775611,4.99775,2000.9,2000.7,0.55]
[1743017776413,9.99568,2000.9,2000.7,0.55]
[1743017776620,4.99751,2001.0,2000.7,0.55]
[1743017776824,4.99776,2000.9,2000.7,2.7576941]
[1743017777033,4.99776,2000.9,2000.7,0.55]
[1743017777326,4.998,2000.8,2000.7,0.55]
[1743017777526,14.41893081,2000.8,2000.1,0.8293]
[1743017777828,4.99901,2000.4,2000.1,5.82896]
[1743017778125,4.99901,2000.4,2000.3,0.55]
[1743017778337,4.99901,2000.4,2000.2,14.5]
[1743017778502,4.99925,2000.3,2000.2,14.5]
[1743017778711,4.99925,2000.3,2000.2,15.05]
[1743017778912,4.99925,2000.3,2000.2,14.5]
[1743017779228,4.99925,2000.3,2000.2,17.27650787]
[1743017779393,4.99901,2000.4,2000.2,17.27650787]
[1743017779817,4.99925,2000.3,2000.2,17.27650787]
[1743017780192,4.99925,2000.3,2000.2,14.5]
[1743017780895,5.11510546,2000.3,2000.2,14.5]
[1743017782937,0.11585546,2000.3,2000.2,15.05]
[1743017783230,21.0267,2000.7,2000.3,5.54921]
[1743017783412,4.99852,2000.6,2000.3,5.54921]
[1743017783618,4.99852,2000.6,2000.5,0.55]
[1743017783995,4.99875,2000.5,2000.3,0.55]
[1743017784214,8.38704081,2000.4,2000.3,0.55]
[1743017784411,4.9991,2000.4,2000.3,0.55]
[1743017785129,8.38704081,2000.4,2000.3,0.55]
[1743017785323,4.9991,2000.4,2000.3,0.55]
[1743017785628,4.9991,2000.4,2000.2,14.5]
[1743017785629,4.99925,2000.3,2000.2,14.5]
[1743017785815,10.84333889,2000.3,2000.2,14.5]
[1743017786132,4.99925,2000.3,2000.2,14.5]
[1743017786332,4.99958,2000.2,1999.9,6.01126203]
[1743017786502,9.99925,2000.2,1999.9,1.01102203]
[1743017786699,9.99925,2000.2,2000.0,14.5]
[1743017787130,4.99975,2000.1,2000.0,14.5]
[1743017787315,5.33266689,2000.1,1999.6,0.7919]
[1743017787515,5.00109,1999.6,1999.4,0.7919]
[1743017788901,8.75519981,1999.5,1999.1,0.8193]
[1743017789105,6.05999,1999.6,1999.1,0.8193]
[1743017789106,11.0612,1999.6,1999.1,5.82154]
[1743017789332,6.05999,1999.6,1999.2,0.55]